bitfinex/quotes_SOLUSD_20250317
["timestamp","ask_amount","ask_price","bid_price","bid_amount"]
[1742249491269,20.42756979,129.31,129.3,0.063]
[1742249492168,12.69426979,129.31,129.3,0.063]
[1742249495191,0.0001,129.31,129.3,0.063]
[1742249508224,12.69426979,129.31,129.3,0.063]
[1742249514124,0.0001,129.31,129.3,0.063]
[1742249522063,12.69426979,129.31,129.3,0.063]
[1742249523170,20.42756979,129.31,129.3,0.063]
[1742249529144,40.04519293,129.31,129.28,0.03]
[1742249529449,20.42866979,129.29,129.28,0.03]
[1742249530554,71.20534895,129.29,129.28,0.03]
[1742249534554,20.42866979,129.29,129.28,0.03]
[1742249537079,71.20534895,129.29,129.28,0.03]
[1742249537253,71.48967209,129.29,129.28,0.03]
[1742249538183,20.42866979,129.29,129.28,0.03]
[1742249538391,12.69416979,129.29,129.28,0.03]
[1742249542012,20.42866979,129.29,129.28,0.03]
[1742249545395,12.69416979,129.29,129.28,0.03]
[1742249545598,12.69416979,129.3,129.28,0.03]
[1742249545803,0.0001,129.31,129.28,0.03]
[1742249546009,12.69416979,129.29,129.28,0.03]
[1742249547814,20.42866979,129.29,129.28,0.03]
[1742249551319,20.42866979,129.29,129.28,0.03]
[1742249557225,71.20534895,129.29,129.28,0.03]
[1742249557429,78.18967209,129.29,129.28,0.03]
[1742249558510,12.69416979,129.27,129.26,0.063]
[1742249559031,20.42986979,129.27,129.26,0.063]
[1742249564234,12.69416979,129.27,129.26,0.063]
[1742249564830,20.42986979,129.27,129.26,0.063]
[1742249568031,12.69416979,129.27,129.26,0.063]
[1742249568332,20.42986979,129.27,129.26,0.063]
[1742249569136,20.71419293,129.27,129.26,0.063]
[1742249570138,20.99851607,129.27,129.26,0.063]
[1742249570334,12.97849293,129.26,129.25,0.063]
[1742249571417,20.71479293,129.26,129.25,0.063]
[1742249576346,12.97849293,129.26,129.25,0.063]
[1742249578343,12.69416979,129.26,129.25,0.063]
[1742249579250,20.43046979,129.26,129.25,0.063]
[1742249580351,12.69416979,129.26,129.25,0.063]
[1742249583650,12.75716979,129.28,129.25,0.063]
[1742249583827,0.063,129.28,129.25,7.7189]
[1742249584033,0.063,129.28,129.26,6.7]
[1742249585353,0.063,129.28,129.27,7.7357]
[1742249586256,12.75716979,129.28,129.26,14.436]
[1742249592864,12.75716979,129.28,129.26,14.4363]
[1742249593542,0.063,129.28,129.26,14.4363]
[1742249598463,0.063,129.28,129.26,6.7]
[1742249598769,12.75716979,129.28,129.26,6.7]
[1742249599165,12.75716979,129.28,129.26,14.4363]
[1742249600868,0.063,129.28,129.26,14.4363]
[1742249604859,12.75716979,129.28,129.26,6.7]
[1742249605061,12.69416979,129.27,129.26,6.7]
[1742249605457,12.69416979,129.27,129.25,138.163]
[1742249605675,12.69416979,129.26,129.25,0.063]
[1742249607900,20.43046979,129.26,129.25,0.063]
[1742249610199,12.69416979,129.26,129.25,0.063]
[1742249613100,12.69416979,129.26,129.25,0.063]
[1742249622128,0.063,129.28,129.25,0.063]
[1742249622334,0.063,129.28,129.26,38.04381865]
[1742249623032,0.063,129.28,129.27,39.18091865]
[1742249623830,0.063,129.28,129.27,46.91661865]
[1742249624019,0.063,129.28,129.27,47.20094179]
[1742249626037,0.063,129.28,129.27,34.506772]
[1742249628235,0.063,129.28,129.27,172.606772]
[1742249630564,0.063,129.28,129.25,138.163]
[1742249630846,0.063,129.28,129.25,144.863]
[1742249631057,12.75716979,129.28,129.25,152.5996]
[1742249632646,12.69416979,129.26,129.25,0.063]
[1742249635429,20.43046979,129.26,129.25,0.063]
[1742249637256,12.69416979,129.26,129.25,0.063]
[1742249641260,12.69416979,129.27,129.25,0.063]
[1742249643259,12.69416979,129.26,129.25,0.063]
[1742249648574,12.75716979,129.26,129.25,0.063]
[1742249653563,0.063,129.26,129.25,0.063]
[1742249655570,0.063,129.26,129.25,7.7999]
[1742249657089,0.063,129.26,129.25,0.063]
[1742249658196,12.75716979,129.26,129.25,0.063]
[1742249661697,0.063,129.26,129.25,0.063]
[1742249662369,12.75716979,129.26,129.25,0.063]
[1742249670221,0.063,129.26,129.25,0.063]
[1742249679425,12.75716979,129.26,129.25,0.063]
[1742249681238,20.49346979,129.26,129.25,0.063]
[1742249696363,20.77779293,129.26,129.25,0.063]
[1742249699963,20.49346979,129.26,129.25,0.063]
[1742249700962,12.75716979,129.26,129.25,0.063]
[1742249701571,20.49346979,129.26,129.25,0.063]
[1742249701860,0.063,129.26,129.25,0.063]
[1742249702246,12.75716979,129.26,129.25,0.063]
[1742249703537,0.063,129.26,129.25,0.063]
[1742249703737,12.75716979,129.26,129.25,0.063]
[1742249705146,0.063,129.26,129.25,0.063]
[1742249708551,12.75716979,129.26,129.25,0.063]
[1742249709058,20.49346979,129.26,129.25,0.063]
[1742249711079,12.75716979,129.26,129.25,0.063]
[1742249713243,20.49346979,129.26,129.25,0.063]
[1742249713764,12.75716979,129.26,129.25,0.063]
[1742249714554,20.49346979,129.26,129.25,0.063]
[1742249715356,12.75716979,129.26,129.25,0.063]
[1742249721975,0.063,129.26,129.25,0.063]
[1742249733678,20.49346979,129.26,129.25,0.063]
[1742249736087,0.063,129.26,129.25,0.063]
[1742249737179,12.75716979,129.26,129.25,0.063]
[1742249737798,0.063,129.26,129.25,0.063]
[1742249745199,12.75716979,129.26,129.25,0.063]
[1742249745611,0.063,129.26,129.25,0.063]
[1742249751785,12.75716979,129.26,129.25,0.063]
[1742249757295,20.49346979,129.26,129.25,0.063]
[1742249758012,12.75716979,129.26,129.25,0.063]
[1742249759118,20.49346979,129.26,129.25,0.063]
[1742249759301,20.0,129.24,129.23,0.063]
[1742249759510,32.69416979,129.24,129.23,0.063]
[1742249760598,40.43166979,129.24,129.23,0.063]
[1742249762117,27.7375,129.24,129.23,0.063]
[1742249762419,40.43166979,129.24,129.23,0.063]
[1742249765428,20.43166979,129.24,129.23,0.063]
[1742249765623,40.43166979,129.24,129.23,0.063]
[1742249766007,32.69416979,129.24,129.23,0.063]
[1742249767843,40.43166979,129.24,129.23,0.063]
[1742249769515,32.69416979,129.24,129.23,0.063]
[1742249771653,40.43166979,129.24,129.23,0.063]
[1742249773427,32.69416979,129.24,129.23,0.063]
[1742249773927,7.8002,129.25,129.23,0.063]
[1742249773928,0.063,129.25,129.23,6.743]
[1742249774132,0.063,129.25,129.23,144.843]
[1742249775727,0.063,129.25,129.24,26.38714886]
[1742249777831,0.063,129.25,129.24,164.48714886]
[1742249781150,0.063,129.25,129.24,156.74964886]
[1742249782175,0.063,129.25,129.24,164.48714886]
[1742249788203,0.063,129.25,129.24,156.74964886]
[1742249789102,0.063,129.25,129.24,164.48714886]
[1742249791779,0.063,129.25,129.24,164.771472]
[1742249796811,0.063,129.25,129.24,138.1]
[1742249797420,0.063,129.25,129.24,145.8375]
[1742249800814,0.0001,129.25,129.24,177.74996493]
[1742249800984,0.063,129.28,129.27,0.28432314]
[1742249801213,0.063,129.28,129.27,38.30814179]
[1742249802942,0.063,129.28,129.27,46.04384179]
[1742249803938,0.063,129.28,129.27,358.04384179]
[1742249804125,0.063,129.28,129.27,496.14374179]
[1742249806947,0.063,129.28,129.27,184.14374179]
[1742249813943,0.063,129.28,129.27,171.449572]
[1742249818741,0.063,129.28,129.27,164.769572]
[1742249818932,0.063,129.28,129.27,171.449572]
[1742249821447,0.063,129.28,129.27,184.14374179]
[1742249821637,0.063,129.28,129.27,184.42806493]
[1742249823333,0.063,129.3,129.28,19.21829514]
[1742249823530,0.063,129.3,129.29,31.62814179]
[1742249825455,0.063,129.3,129.29,39.36264179]
[1742249826633,0.063,129.3,129.28,144.7799]
[1742249827345,12.75716979,129.3,129.28,6.68]
[1742249827546,20.49116979,129.3,129.28,6.68]
[1742249827746,20.49116979,129.3,129.27,156.77954886]
[1742249828264,12.75716979,129.3,129.27,164.51524886]
[1742249828447,20.49116979,129.3,129.27,156.77954886]
[1742249828758,12.75716979,129.3,129.27,156.77954886]
[1742249828950,20.49116979,129.3,129.27,156.77954886]
[1742249829454,20.42916979,129.29,129.27,0.03]
[1742249829658,12.69416979,129.29,129.27,0.03]
[1742249830240,12.75716979,129.3,129.27,0.03]
[1742249831055,12.69416979,129.29,129.27,0.03]
[1742249833560,12.75716979,129.3,129.27,0.03]
[1742249833744,0.063,129.3,129.27,0.03]
[1742249834658,12.75716979,129.3,129.27,0.03]
[1742249850177,12.69416979,129.28,129.27,0.03]
[1742249851573,12.69416979,129.29,129.27,0.03]
[1742249852388,12.75716979,129.3,129.27,0.03]
[1742249854189,20.49116979,129.3,129.27,0.03]
[1742249854508,12.69416979,129.29,129.27,0.03]
[1742249856892,20.49116979,129.3,129.27,0.03]
[1742249858180,12.69416979,129.29,129.27,0.03]
[1742249867397,12.75716979,129.3,129.27,0.03]
[1742249867591,0.063,129.3,129.27,0.03]
[1742249868280,12.75716979,129.3,129.27,0.03]
[1742249870003,20.49126979,129.3,129.27,0.03]
[1742249870202,12.69416979,129.29,129.27,0.03]
[1742249873686,12.75716979,129.29,129.27,0.03]
[1742249874194,0.063,129.29,129.27,0.03]
[1742249874999,0.063,129.29,129.28,18.64964886]
[1742249875909,0.063,129.29,129.28,26.38474886]
[1742249877289,0.063,129.29,129.28,18.64964886]
[1742249877510,12.75716979,129.29,129.27,138.1299]
[1742249878404,0.063,129.29,129.27,145.8655]
[1742249878916,0.063,129.29,129.27,138.1299]
[1742249879085,0.063,129.29,129.27,145.8655]
[1742249879888,0.063,129.29,129.27,138.1299]
[1742249880495,12.75716979,129.29,129.27,0.03]
[1742249881206,12.75716979,129.29,129.27,7.7656]
[1742249881509,0.063,129.29,129.27,7.7656]
[1742249882399,0.063,129.29,129.28,18.64964886]
[1742249884414,0.063,129.29,129.28,26.38474886]
[1742249887110,0.063,129.29,129.28,18.64964886]
[1742249889096,0.063,129.29,129.27,138.1299]
[1742249889298,12.69416979,129.28,129.27,138.1299]
[1742249889506,12.75716979,129.29,129.27,138.1299]
[1742249889710,0.063,129.29,129.27,138.1299]
[1742249889910,12.75716979,129.29,129.27,138.1299]
[1742249891025,12.69416979,129.28,129.27,138.1299]
[1742249892137,12.69416979,129.28,129.27,0.03]
[1742249892434,20.42926979,129.28,129.27,0.03]
[1742249893136,12.69416979,129.28,129.27,0.03]
[1742249899247,12.75716979,129.29,129.27,0.03]
[1742249903150,0.063,129.29,129.27,0.03]
[1742249903349,12.75716979,129.29,129.27,0.03]
[1742249904680,20.49166979,129.29,129.27,0.03]
[1742249912586,0.063,129.29,129.27,0.03]
[1742249914078,0.063,129.29,129.28,18.64964886]
[1742249914270,0.063,129.29,129.27,18.67964886]
[1742249920283,0.063,129.29,129.27,26.41524886]
[1742249922685,0.063,129.29,129.28,25.30964886]
[1742249924484,0.063,129.29,129.28,6.66]
[1742249932388,0.063,129.29,129.28,6.69]
[1742249933591,0.063,129.29,129.28,25.33964886]
[1742249948198,0.063,129.29,129.28,33.359072]
[1742249948387,0.063,129.29,129.28,46.05324179]
[1742249950903,0.063,129.29,129.28,184.15314179]
[1742249951807,0.063,129.29,129.28,496.15314179]
[1742249953803,0.063,129.29,129.28,184.15314179]
[1742249956793,0.063,129.29,129.28,496.15314179]
[1742249957000,0.063,129.29,129.28,184.15314179]
[1742249959512,0.063,129.29,129.28,171.458972]
[1742249963217,0.063,129.29,129.28,163.43954886]
[1742249963417,0.063,129.29,129.28,156.77954886]
[1742249968423,0.063,129.29,129.28,18.67964886]
[1742249968916,0.063,129.29,129.28,26.41474886]
[1742249969118,0.063,129.29,129.28,39.39324179]
[1742249970122,0.063,129.29,129.28,26.699072]
[1742249970818,0.063,129.29,129.28,18.67964886]
[1742249973851,0.063,129.29,129.28,0.03]
[1742249973852,12.75716979,129.29,129.28,0.03]
[1742249976818,20.49166979,129.29,129.28,0.03]
[1742249989742,71.55267209,129.29,129.28,0.03]
[1742249993241,20.49166979,129.29,129.28,0.03]
[1742250004254,71.26834895,129.29,129.28,0.03]
[1742250004433,20.49166979,129.29,129.28,0.03]
[1742250004850,71.55267209,129.29,129.28,0.03]
[1742250005049,71.83699523,129.29,129.28,0.03]
[1742250005228,71.55267209,129.29,129.28,0.03]
[1742250005428,71.83699523,129.29,129.28,0.03]
[1742250008655,0.28432314,129.28,129.27,0.03]
[1742250008831,12.97849293,129.28,129.27,0.03]
[1742250009862,20.71359293,129.28,129.27,0.03]
[1742250011854,20.99791607,129.28,129.27,0.03]
[1742250012154,20.99791607,129.28,129.25,0.03]
[1742250012155,20.56864628,129.26,129.25,0.03]
[1742250012357,39.92281607,129.26,129.25,0.03]
[1742250013754,47.37479293,129.26,129.25,0.03]
[1742250016055,47.65911607,129.26,129.25,0.03]
[1742250025859,12.97849293,129.25,129.24,0.03]
[1742250027870,20.71539293,129.25,129.24,0.03]
[1742250038971,20.77839293,129.25,129.24,0.03]
[1742250041785,39.71236493,129.25,129.24,0.03]
[1742250041972,0.28432314,129.22,129.18,0.063]
[1742250042283,32.69416979,129.2,129.18,0.063]
[1742250043875,40.43406979,129.2,129.18,0.063]
[1742250044262,40.43406979,129.2,129.15,0.03]
[1742250044263,59.78386979,129.2,129.15,0.03]
[1742250044486,12.69416979,129.17,129.15,8.0111]
[1742250044983,47.0897,129.2,129.15,8.0111]
[1742250045164,12.69416979,129.18,129.15,8.0111]
[1742250046273,20.43536979,129.18,129.15,8.0111]
[1742250046667,12.69416979,129.17,129.15,8.0111]
[1742250048179,20.43586979,129.17,129.15,8.0111]
[1742250048907,12.69416979,129.16,129.15,8.0111]
[1742250050179,20.43646979,129.16,129.15,8.0111]
[1742250050379,20.43646979,129.16,129.15,0.03]
[1742250054364,20.43646979,129.16,129.15,0.03]
[1742250063394,20.72079293,129.16,129.15,0.03]
[1742250065581,20.43646979,129.16,129.15,0.03]
[1742250071306,12.69416979,129.16,129.15,0.03]
[1742250071480,20.063,129.18,129.15,0.03]
[1742250071671,12.69416979,129.17,129.15,0.03]
[1742250072181,0.063,129.18,129.15,0.03]
[1742250072381,12.69416979,129.17,129.15,0.03]
[1742250072583,12.69416979,129.16,129.15,0.03]
[1742250073488,12.69416979,129.17,129.15,0.03]
[1742250074503,12.69416979,129.16,129.15,0.03]
[1742250075308,12.97849293,129.16,129.15,0.03]
[1742250075712,20.72079293,129.16,129.15,0.03]
[1742250076304,78.44179523,129.16,129.15,0.03]
[1742250076686,27.66511607,129.16,129.15,0.03]
[1742250081390,78.44179523,129.16,129.15,0.03]
[1742250081887,27.66511607,129.16,129.15,0.03]
[1742250082098,27.66511607,129.16,129.14,0.03]
[1742250082099,0.28432314,129.15,129.14,0.03]
[1742250082277,32.69416979,129.13,129.12,0.03]
[1742250083632,40.43826979,129.13,129.12,0.03]
[1742250090017,32.69416979,129.13,129.12,0.03]
[1742250090428,40.43826979,129.13,129.12,0.03]
[1742250091327,32.69416979,129.13,129.12,0.03]
[1742250092635,40.43826979,129.13,129.12,0.03]
[1742250098133,32.69416979,129.13,129.12,0.03]
[1742250099040,1.06864628,129.12,129.02,0.03]
[1742250099210,32.69416979,129.08,129.02,7.7804]
[1742250099535,40.44126979,129.08,129.02,0.03]
[1742250102817,12.69416979,129.03,129.02,0.03]
[1742250103413,12.69416979,129.04,129.02,0.03]
[1742250110231,20.44366979,129.04,129.02,0.03]
[1742250110539,12.69416979,129.03,129.02,0.03]
[1742250112036,20.44426979,129.03,129.02,0.03]
[1742250113138,12.69416979,129.03,129.02,0.03]
[1742250116227,20.44426979,129.03,129.02,0.03]
[1742250117052,12.69416979,129.03,129.02,0.03]
[1742250122353,20.44426979,129.03,129.02,0.03]
[1742250126239,20.72859293,129.03,129.02,0.03]
[1742250127443,12.69416979,129.03,129.02,0.03]
[1742250128567,20.44426979,129.03,129.02,0.03]
[1742250130060,12.69416979,129.01,128.98,13.3253]
[1742250142264,12.69416979,129.01,128.97,1.5608]
[1742250142265,12.69416979,129.0,128.97,1.5608]
[1742250142566,7.7513,129.01,128.95,9.3099596]
[1742250142567,12.69416979,128.98,128.95,9.3099596]
[1742250142868,12.69416979,128.97,128.95,9.3099596]
[1742250143375,12.69416979,128.97,128.95,2.6871596]
[1742250143759,12.69416979,128.98,128.95,2.6871596]
[1742250144870,12.69416979,128.97,128.95,2.6871596]
[1742250145569,12.69416979,128.96,128.95,2.6871596]
[1742250146765,20.44846979,128.96,128.95,2.6871596]
[1742250147159,12.69416979,128.96,128.95,2.6871596]
[1742250147372,20.59063136,128.96,128.95,2.6871596]
[1742250147546,20.73279293,128.96,128.95,2.6871596]
[1742250167793,21.01711607,128.96,128.95,2.6871596]
[1742250167977,28.82317237,128.96,128.95,2.6871596]
[1742250177395,35.48317237,128.96,128.95,2.6871596]
[1742250182701,0.28432314,128.95,128.94,0.03]
[1742250182997,20.78454923,128.95,128.94,0.03]
[1742250184294,12.69416979,128.96,128.94,6.5764]
[1742250184683,7.7537,128.97,128.94,6.5764]
[1742250185002,12.69416979,128.96,128.94,6.5764]
[1742250190003,12.75716979,128.96,128.94,6.5764]
[1742250190705,20.51146979,128.96,128.94,6.5764]
[1742250191792,40.51146979,128.96,128.94,6.5764]
[1742250196007,32.75716979,128.96,128.94,6.5764]
[1742250197710,40.51156979,128.96,128.94,0.03]
[1742250197888,12.69416979,128.95,128.94,0.03]
[1742250198908,12.97849293,128.95,128.94,0.03]
[1742250199503,20.73339293,128.95,128.94,0.03]
[1742250212317,20.59123136,128.95,128.94,0.03]
[1742250212624,20.73339293,128.95,128.94,0.03]
[1742250217822,12.69416979,128.95,128.94,0.03]
[1742250218027,40.51166979,128.96,128.94,0.03]
[1742250218929,12.69416979,128.95,128.94,0.03]
[1742250219521,20.44906979,128.95,128.94,0.03]
[1742250236944,20.51206979,128.95,128.94,0.03]
[1742250253564,7.8179,128.95,128.94,0.03]
[1742250255455,20.51206979,128.95,128.94,0.03]
[1742250255845,7.8179,128.95,128.94,0.03]
[1742250256050,0.063,128.95,128.94,0.03]
[1742250259253,0.063,128.95,128.94,19.38416979]
[1742250260561,0.063,128.95,128.94,27.13966979]
[1742250260858,0.063,128.95,128.94,14.4455]
[1742250265266,0.063,128.95,128.94,27.13966979]
[1742250275072,0.063,128.95,128.94,14.4455]
[1742250275582,0.063,128.95,128.94,27.13966979]
[1742250283896,0.063,128.95,128.94,14.4455]
[1742250285795,0.063,128.95,128.94,27.13966979]
[1742250307929,0.063,128.95,128.94,45.78931865]
[1742250308216,0.063,128.95,128.94,105.19674409]
[1742250308217,0.0001,128.95,128.94,105.19674409]
[1742250309219,0.063,128.98,128.95,0.28432314]
[1742250309522,0.063,128.98,128.97,12.69416979]
[1742250309925,0.063,128.98,128.97,20.44786979]
[1742250315127,0.063,128.98,128.97,39.09751865]
[1742250315425,20.51646979,129.06,129.01,12.69416979]
[1742250316502,1.6343,129.06,129.02,12.69416979]
[1742250316822,1.6343,129.06,129.03,12.69416979]
[1742250317224,1.6343,129.06,129.03,20.44386979]
[1742250317620,1.6973,129.06,129.03,20.44386979]
[1742250326680,0.063,129.06,129.03,20.44386979]
[1742250331162,0.063,129.06,129.05,12.69416979]
[1742250333035,0.063,129.06,129.05,20.44306979]
[1742250337051,0.063,129.06,129.05,7.7489]
[1742250337352,0.063,129.06,129.02,12.69416979]
[1742250337559,0.063,129.06,129.02,19.33416979]
[1742250338857,7.8113,129.06,129.02,27.08446979]
[1742250339868,0.063,129.06,129.02,27.08446979]
[1742250342655,0.063,129.06,129.03,20.44426979]
[1742250344359,0.063,129.06,129.03,7.7501]
[1742250344958,0.063,129.06,129.02,14.3904]
[1742250345157,12.75716979,129.06,129.02,14.3904]
[1742250345455,0.063,129.06,129.02,27.08456979]
[1742250345961,0.063,129.06,129.03,12.69416979]
[1742250347666,0.063,129.06,129.04,7.7495]
[1742250349186,0.063,129.06,129.04,20.44366979]
[1742250350642,0.063,129.06,129.03,20.44426979]
[1742250354769,0.063,129.06,129.04,12.69416979]
[1742250356939,0.063,129.06,129.05,7.7489]
[1742250358974,0.063,129.06,129.03,12.69416979]
[1742250359172,14.32456979,129.06,129.02,152.4903]
[1742250359347,12.69416979,129.05,129.01,6.64]
[1742250359862,12.69416979,129.04,129.01,6.64]
[1742250360259,20.44356979,129.05,129.01,6.64]
[1742250360476,12.69416979,129.04,129.0,7.7515]
[1742250360645,12.69416979,129.04,129.0,14.3915]
[1742250361043,12.69416979,129.03,128.99,219.3722]
[1742250362171,20.44436979,129.03,128.99,219.3722]
[1742250363176,20.44436979,129.03,128.99,211.62]
[1742250363478,20.44436979,129.03,128.99,6.64]
[1742250363976,12.69416979,129.0,128.97,7.7834]
[1742250364152,12.69416979,129.0,128.97,14.4234]
[1742250364568,12.69416979,129.01,128.97,14.4234]
[1742250365270,20.44546979,129.01,128.97,14.4234]
[1742250369379,20.44546979,129.01,128.97,0.03]
[1742250369670,20.44546979,129.01,128.97,6.67]
[1742250370482,20.44546979,129.01,128.97,14.4237]
[1742250372776,12.69416979,129.01,128.97,14.4237]
[1742250372976,28.19736979,129.02,128.97,14.4237]
[1742250378280,20.44556979,129.01,128.97,14.4237]
[1742250380379,20.44556979,129.01,128.97,6.67]
[1742250380682,12.69416979,129.0,128.97,6.67]
[1742250381185,20.44616979,129.0,128.97,6.67]
[1742250381564,20.44616979,129.0,128.97,0.03]
[1742250382381,12.69416979,129.0,128.97,0.03]
[1742250384067,12.69416979,129.01,128.97,0.03]
[1742250385089,20.44586979,129.01,128.97,0.03]
[1742250387488,12.69416979,129.0,128.97,0.03]
[1742250390775,20.44626979,129.0,128.97,0.03]
[1742250391667,12.69416979,129.0,128.97,0.03]
[1742250391871,20.44556979,129.01,128.97,0.03]
[1742250392066,7.7514,129.01,128.97,0.03]
[1742250392393,20.44556979,129.01,128.97,0.03]
[1742250393095,20.44616979,129.0,128.97,0.03]
[1742250396272,12.69416979,128.99,128.97,0.03]
[1742250398394,12.69416979,129.0,128.97,0.03]
[1742250399571,20.44626979,129.0,128.97,0.03]
[1742250400696,12.69416979,128.99,128.97,0.03]
[1742250400900,12.69416979,128.98,128.97,0.03]
[1742250403696,0.28432314,129.0,128.97,0.03]
[1742250403902,12.69416979,128.99,128.97,0.03]
[1742250415081,20.44666979,128.99,128.97,0.03]
[1742250416414,20.50966979,128.99,128.97,0.03]
[1742250418905,12.69416979,128.98,128.97,0.03]
[1742250419991,12.75716979,128.99,128.97,0.03]
[1742250421723,12.69416979,128.98,128.97,0.03]
[1742250422421,20.50976979,128.99,128.97,0.03]
[1742250423026,12.75716979,128.99,128.97,0.03]
[1742250423830,0.063,128.99,128.97,0.03]
[1742250425206,12.69416979,128.98,128.97,0.03]
[1742250425813,12.75716979,128.99,128.97,0.03]
[1742250428313,12.69416979,128.98,128.97,0.03]
[1742250430426,0.063,128.99,128.97,0.03]
[1742250440142,12.75716979,128.99,128.97,0.03]
[1742250441218,32.75716979,128.99,128.97,0.03]
[1742250442745,20.063,128.99,128.97,0.03]
[1742250444449,32.75716979,128.99,128.97,0.03]
[1742250447751,0.063,128.99,128.97,0.03]
[1742250448955,20.50966979,128.99,128.97,0.03]
[1742250450328,12.75716979,128.99,128.97,0.03]
[1742250450873,27.8156,128.99,128.97,0.03]
[1742250451147,40.50976979,128.99,128.97,0.03]
[1742250461062,32.75716979,128.99,128.97,0.03]
[1742250461652,40.50966979,128.99,128.97,0.03]
[1742250464257,27.8155,128.99,128.97,0.03]
[1742250464862,0.063,128.99,128.97,0.03]
[1742250465759,0.063,128.99,128.97,18.67964886]
[1742250465943,0.063,128.99,128.98,6.64]
[1742250466148,0.063,128.99,128.98,19.33416979]
[1742250466349,0.063,128.99,128.98,27.08726979]
[1742250472167,0.063,128.99,128.98,14.3931]
[1742250476685,0.063,128.99,128.98,45.73691865]
[1742250478061,0.063,128.99,128.98,14.3931]
[1742250488563,0.063,128.99,128.97,145.8833]
[1742250488769,12.75716979,128.99,128.97,0.03]
[1742250489483,0.063,128.99,128.97,7.7836]
[1742250489862,0.063,128.99,128.97,0.03]
[1742250503874,20.44726979,128.98,128.97,0.03]
[1742250506996,12.69416979,128.98,128.97,0.03]
[1742250509483,12.75716979,128.99,128.97,0.03]
[1742250510901,0.28432314,128.97,128.94,0.03]
[1742250511078,12.69416979,128.95,128.94,0.03]
[1742250512794,20.44906979,128.95,128.94,0.03]
[1742250518406,20.73339293,128.95,128.94,0.03]
[1742250518608,30.82894697,128.95,128.94,0.03]
[1742250518905,20.0,128.92,128.88,7.3767274]
[1742250519088,12.69416979,128.91,128.88,7.3767274]
[1742250519407,12.69416979,128.91,128.88,0.7367274]
[1742250524800,12.69416979,128.91,128.88,8.4958274]
[1742250529510,12.69416979,128.9,128.88,0.7367274]
[1742250529700,12.69416979,128.9,128.88,8.4958274]
[1742250530799,12.69416979,128.91,128.88,8.4958274]
[1742250532413,12.69416979,128.9,128.88,8.4958274]
[1742250533215,12.69416979,128.9,128.88,8.5258274]
[1742250535017,12.69416979,128.91,128.88,8.5258274]
[1742250538716,32.69416979,128.92,128.88,8.5258274]
[1742250538924,32.69416979,128.92,128.88,27.9236274]
[1742250541498,12.69416979,128.92,128.88,27.9236274]
[1742250544222,12.69416979,128.91,128.88,27.9236274]
[1742250555734,12.75716979,128.94,128.9,6.64]
[1742250557334,0.063,128.94,128.9,157.43416979]
[1742250557708,0.063,128.94,128.91,27.1506]
[1742250561435,0.063,128.94,128.91,39.84476979]
[1742250562610,0.063,128.94,128.91,27.1506]
[1742250563912,0.063,128.94,128.92,12.69416979]
[1742250564328,0.063,128.94,128.93,7.7561]
[1742250571046,0.063,128.94,128.93,20.45026979]
[1742250571227,0.063,128.94,128.93,46.88671865]
[1742250572443,0.0001,128.94,128.93,185.55536493]
[1742250575431,0.0001,128.94,128.93,497.55536493]
[1742250578173,0.0001,128.94,128.93,185.55536493]
[1742250581157,0.0001,128.94,128.93,497.55536493]
[1742250581539,0.0001,128.94,128.93,548.33204409]
[1742250581940,0.0001,128.94,128.93,497.55536493]